bitfinex/quotes_BTCUSD_20240906
["timestamp","ask_amount","ask_price","bid_price","bid_amount"]
[1725601268642,2.3635271,56578.0,56577.0,0.101832]
[1725601268879,2.49649667,56578.0,56577.0,0.101832]
[1725601269362,2.39123457,56578.0,56577.0,0.101832]
[1725601269789,2.3635271,56578.0,56577.0,0.101832]
[1725601270008,2.0100331,56578.0,56577.0,0.101832]
[1725601270256,2.115381,56578.0,56577.0,0.101832]
[1725601270719,2.115381,56578.0,56577.0,0.222732]
[1725601270950,1.44619243,56578.0,56577.0,0.222732]
[1725601271246,0.12995698,56578.0,56577.0,0.222732]
[1725601271459,0.031309,56578.0,56577.0,0.752982]
[1725601271688,0.031309,56578.0,56577.0,1.12641347]
[1725601271689,0.03131034,56578.0,56577.0,1.12641347]
[1725601272120,0.01731034,56578.0,56577.0,1.12641347]
[1725601272344,0.0338057,56578.0,56577.0,1.47991347]
[1725601272556,0.0358057,56578.0,56577.0,1.47991347]
[1725601272767,0.01931136,56578.0,56577.0,1.47991347]
[1725601273201,0.002816,56578.0,56577.0,1.47991347]
[1725601273413,0.01931227,56578.0,56577.0,1.47991347]
[1725601273624,0.01731227,56578.0,56577.0,1.47991347]
[1725601273832,0.01831227,56578.0,56577.0,1.48091347]
[1725601274891,0.01931227,56578.0,56577.0,1.48291347]
[1725601275101,0.01831227,56578.0,56577.0,1.48091347]
[1725601275313,0.01731227,56578.0,56577.0,1.47991347]
[1725601275535,0.01831227,56578.0,56577.0,1.48191347]
[1725601275748,0.1,56593.0,56589.0,0.176712]
[1725601275959,0.176702,56593.0,56591.0,0.2164]
[1725601276173,0.176702,56593.0,56592.0,0.2164]
[1725601276393,0.276702,56593.0,56592.0,0.23629709]
[1725601276615,0.630102,56593.0,56592.0,0.23629709]
[1725601277055,0.631102,56593.0,56592.0,0.23629709]
[1725601277267,0.277702,56593.0,56592.0,0.23629709]
[1725601278831,0.278702,56593.0,56592.0,0.23629709]
[1725601279052,0.1,56593.0,56592.0,0.23629709]
[1725601279264,0.2777,56593.0,56592.0,0.23829709]
[1725601279474,0.2777,56593.0,56592.0,0.24129709]
[1725601279475,0.2787,56593.0,56592.0,0.24129709]
[1725601279896,0.102,56593.0,56592.0,0.24129709]
[1725601280346,0.12971168,56593.0,56592.0,0.41800009]
[1725601281025,0.12971168,56593.0,56592.0,0.24129709]
[1725601281237,0.02971168,56593.0,56592.0,0.41800009]
[1725601281662,0.02971168,56593.0,56592.0,0.24129709]
[1725601281865,0.02971168,56593.0,56592.0,0.41800009]
[1725601282082,0.02971168,56593.0,56592.0,0.24129709]
[1725601282506,0.12971168,56593.0,56592.0,0.24129709]
[1725601283161,0.30641168,56593.0,56592.0,0.24129709]
[1725601283576,0.12971168,56593.0,56592.0,0.24129709]
[1725601283757,0.30641168,56593.0,56592.0,0.24129709]
[1725601284180,0.12971168,56593.0,56592.0,0.24129709]
[1725601285429,0.30641168,56593.0,56592.0,0.24129709]
[1725601285639,0.65981168,56593.0,56592.0,0.24129709]
[1725601285848,0.30641168,56593.0,56592.0,0.24129709]
[1725601288085,0.14619903,56593.0,56592.0,0.24129709]
[1725601288366,0.04701503,56593.0,56592.0,0.398103]
[1725601288572,0.03052768,56593.0,56592.0,0.398103]
[1725601288811,0.03052768,56593.0,56592.0,0.41800009]
[1725601289159,0.03052768,56593.0,56592.0,0.24129709]
[1725601289359,0.20722768,56593.0,56592.0,0.24129709]
[1725601289570,0.30722768,56593.0,56592.0,0.24129709]
[1725601290061,0.13052768,56593.0,56592.0,0.24129709]
[1725601292998,0.13052768,56593.0,56592.0,0.41800009]
[1725601293201,0.03052768,56593.0,56592.0,0.41800009]
[1725601295567,0.03052768,56593.0,56592.0,0.24129709]
[1725601295763,0.04701532,56593.0,56592.0,0.24129709]
[1725601296526,0.03052768,56593.0,56592.0,0.24129709]
[1725601296779,0.04701478,56593.0,56592.0,0.24129709]
[1725601297455,0.04701478,56593.0,56592.0,0.41800009]
[1725601297672,0.04701478,56593.0,56592.0,0.77140609]
[1725601298349,0.04701478,56593.0,56592.0,1.12481209]
[1725601299513,0.0193031,56593.0,56592.0,1.12481209]
[1725601300012,0.01930439,56593.0,56592.0,1.12481209]
[1725601302822,0.0470145,56593.0,56592.0,1.12481209]
[1725601303307,0.04701916,56593.0,56592.0,1.12481209]
[1725601305045,0.04701916,56593.0,56592.0,0.77140609]
[1725601306353,0.354185,56598.0,56592.0,0.77140609]
[1725601306354,0.27904081,56598.0,56592.0,0.59470309]
[1725601306558,0.29318139,56597.0,56594.0,0.176696]
[1725601306760,0.01649239,56596.0,56594.0,0.176696]
[1725601306991,0.01649239,56596.0,56595.0,0.01989021]
[1725601307342,0.276689,56597.0,56595.0,0.01989021]
[1725601307551,0.17669,56596.0,56595.0,0.01989021]
[1725601307777,0.17669,56596.0,56593.0,0.1767]
[1725601308171,0.176694,56595.0,56594.0,0.0198925]
[1725601308409,0.530082,56595.0,56594.0,0.0198925]
[1725601308639,0.530082,56595.0,56592.0,0.1229]
[1725601308640,0.1767,56593.0,56592.0,0.1229]
[1725601308879,0.5301,56593.0,56592.0,0.1209]
[1725601309108,0.54659254,56593.0,56592.0,0.1209]
[1725601309588,0.01649254,56593.0,56585.0,0.095]
[1725601309829,0.01649254,56593.0,56584.0,0.1253]
[1725601309830,0.353442,56587.0,56584.0,0.1253]
[1725601310047,0.19321314,56586.0,56584.0,0.1253]
[1725601310276,0.01649114,56585.0,56584.0,0.302028]
[1725601310776,0.01649114,56585.0,56584.0,0.750484]
[1725601311688,0.176713,56589.0,56586.0,0.176721]
[1725601311910,0.01649178,56588.0,56586.0,0.176721]
[1725601312133,0.01649178,56587.0,56586.0,0.175721]
[1725601312353,0.01649178,56587.0,56586.0,0.528165]
[1725601312968,0.01649178,56587.0,56586.0,0.530165]
[1725601313180,0.04420437,56587.0,56586.0,0.533165]
[1725601314313,0.04420437,56587.0,56586.0,0.531165]
[1725601314551,0.04520437,56587.0,56586.0,0.644265]
[1725601314771,0.04520437,56587.0,56586.0,0.745197]
[1725601315030,0.04620437,56587.0,56586.0,1.455085]
[1725601317132,0.04620437,56587.0,56586.0,1.818529]
[1725601317578,0.04621062,56587.0,56586.0,1.818529]
[1725601319426,0.01849819,56587.0,56586.0,1.818529]
[1725601320636,0.01849819,56587.0,56586.0,1.820529]
[1725601320871,0.01849819,56587.0,56586.0,1.87345771]
[1725601321078,0.01849819,56587.0,56586.0,1.89360632]
[1725601321294,0.01849819,56587.0,56586.0,1.840529]
[1725601321750,0.002,56587.0,56586.0,1.840529]
[1725601322009,0.001,56587.0,56586.0,1.91714498]
[1725601322227,0.000816,56598.0,56597.0,1.448212]
[1725601322448,0.000816,56598.0,56597.0,1.447212]
[1725601322688,0.01731576,56598.0,56597.0,1.447212]
[1725601322901,0.01731576,56598.0,56597.0,1.446212]
[1725601323128,0.04502193,56598.0,56597.0,1.446212]
[1725601323556,0.04602193,56598.0,56597.0,1.450212]
[1725601323755,0.04602193,56598.0,56597.0,1.449212]
[1725601324820,0.04602193,56598.0,56597.0,1.463212]
[1725601325227,0.04602193,56598.0,56597.0,1.449212]
[1725601325432,0.04502193,56598.0,56597.0,1.445212]
[1725601325634,0.04502195,56598.0,56597.0,1.445212]
[1725601325869,0.04602195,56598.0,56597.0,1.459212]
[1725601326074,0.04502195,56598.0,56597.0,1.445212]
[1725601326272,0.04502195,56598.0,56597.0,1.459212]
[1725601326490,0.04602195,56598.0,56597.0,1.459212]
[1725601326701,0.04702195,56598.0,56597.0,1.47909763]
[1725601326899,0.04802195,56598.0,56597.0,1.49309763]
[1725601327103,0.04702195,56598.0,56597.0,1.49309763]
[1725601327317,0.04602195,56598.0,56597.0,1.46509763]
[1725601327524,0.04702195,56598.0,56597.0,1.47909763]
[1725601327921,0.04602195,56598.0,56597.0,1.46509763]
[1725601328124,0.04602195,56598.0,56597.0,0.65904763]
[1725601328347,0.04702195,56598.0,56597.0,0.03388563]
[1725601328570,0.04802195,56598.0,56597.0,0.22457263]
[1725601328770,0.04802195,56598.0,56597.0,0.04788563]
[1725601329024,0.04602195,56598.0,56597.0,0.21057263]
[1725601329354,0.04702195,56598.0,56597.0,0.04788563]
[1725601329567,0.04602195,56598.0,56597.0,0.21057263]
[1725601329779,0.01831578,56598.0,56597.0,0.56394763]
[1725601330180,0.01931578,56598.0,56597.0,0.22457263]
[1725601330398,0.01931578,56598.0,56597.0,0.79244763]
[1725601330852,0.01831578,56598.0,56597.0,0.77844763]
[1725601331071,0.01931578,56598.0,56597.0,0.79144763]
[1725601331544,0.002816,56598.0,56597.0,0.79144763]
[1725601331758,0.01831838,56598.0,56597.0,0.14868563]
[1725601332005,0.01831838,56598.0,56597.0,0.03288563]
[1725601332006,0.29330238,56598.0,56597.0,0.03288563]
[1725601332259,0.11761838,56598.0,56597.0,0.04588563]
[1725601332817,0.11761838,56598.0,56597.0,0.22257263]
[1725601333444,0.11761838,56598.0,56597.0,0.04588563]
[1725601333641,0.01931838,56598.0,56597.0,0.22257263]
[1725601333896,0.01931838,56598.0,56597.0,0.67464763]
[1725601334775,0.002816,56598.0,56597.0,0.67464763]
[1725601335004,0.01931682,56598.0,56597.0,0.67464763]
[1725601335888,0.01931682,56598.0,56597.0,0.04588563]
[1725601336099,0.29430082,56598.0,56597.0,0.04588563]
[1725601336526,0.11761682,56598.0,56597.0,0.04588563]
[1725601336957,0.11761682,56598.0,56597.0,0.22257263]
[1725601339571,0.01931682,56598.0,56597.0,0.22257263]
[1725601340477,0.01931682,56598.0,56597.0,0.04588563]
[1725601341179,0.01931682,56598.0,56597.0,0.22257263]
[1725601341394,0.01931626,56598.0,56597.0,0.22257263]
[1725601343078,0.04702378,56598.0,56597.0,0.22257263]
[1725601344133,0.04702378,56598.0,56597.0,0.04588563]
[1725601344353,0.04702378,56598.0,56597.0,0.22257263]
[1725601344990,1.14854578,56598.0,56597.0,0.04588563]
[1725601345232,1.63011123,56598.0,56597.0,0.04588563]
[1725601345457,2.18071539,56598.0,56597.0,0.026]
[1725601345692,2.10519824,56598.0,56597.0,0.026]
[1725601345902,2.10519824,56598.0,56592.0,0.001632]
[1725601345903,1.2369,56593.0,56592.0,0.001632]
[1725601346133,1.35220026,56593.0,56592.0,0.001632]
[1725601347603,1.35220026,56593.0,56592.0,0.003632]
[1725601347604,1.3357,56593.0,56592.0,0.003632]
[1725601347848,1.35219727,56593.0,56592.0,0.003632]
[1725601348082,1.35219727,56593.0,56592.0,0.006632]
[1725601348544,1.87219727,56593.0,56592.0,0.006632]
[1725601348996,1.69549727,56593.0,56592.0,0.006632]
[1725601349248,1.51879727,56593.0,56592.0,0.006632]
[1725601349476,1.16539727,56593.0,56592.0,0.006632]
[1725601349700,1.06659727,56593.0,56592.0,0.006632]
[1725601350565,0.71319727,56593.0,56592.0,0.006632]
[1725601350781,0.19319727,56593.0,56592.0,0.02652909]
[1725601350970,0.01649727,56593.0,56592.0,0.02652909]
[1725601351098,0.01649727,56593.0,56592.0,0.14892909]
[1725601352141,0.19319727,56593.0,56592.0,0.14892909]
[1725601352765,0.01649727,56593.0,56592.0,0.14892909]
[1725601353448,0.176698,56594.0,56592.0,0.14892909]
[1725601353887,0.01649872,56593.0,56592.0,0.14892909]
[1725601354098,0.72329872,56593.0,56592.0,0.02652909]
[1725601354313,0.99879872,56593.0,56592.0,0.003632]
[1725601354529,0.99879872,56593.0,56592.0,0.005632]
[1725601354530,0.29199872,56593.0,56592.0,0.005632]
[1725601354749,0.19319872,56593.0,56592.0,0.02552909]
[1725601355241,0.1767,56593.0,56592.0,0.02552909]
[1725601355464,0.1767,56593.0,56592.0,0.02352909]
[1725601355465,0.19319861,56593.0,56592.0,0.02352909]
[1725601355699,0.54659861,56593.0,56592.0,0.02352909]
[1725601355911,0.54659861,56593.0,56592.0,0.02152909]
[1725601356120,0.01649861,56593.0,56592.0,0.02552909]
[1725601356794,0.0164993,56593.0,56592.0,0.02452909]
[1725601357005,0.02771152,56595.0,56592.0,0.20123209]
[1725601357227,0.01649937,56594.0,56592.0,0.02752909]
[1725601357473,0.01649937,56593.0,56592.0,0.20423209]
[1725601358308,0.01649937,56593.0,56592.0,0.65317184]
[1725601358519,0.01649937,56593.0,56592.0,1.00357784]
[1725601358754,0.01649937,56593.0,56592.0,1.35698384]
[1725601358977,0.01649937,56593.0,56592.0,1.00057784]
[1725601359179,0.02771152,56595.0,56594.0,0.530091]
[1725601359392,0.000816,56598.0,56596.0,0.353381]
[1725601359600,0.000816,56598.0,56597.0,0.19657263]
[1725601360071,0.01731673,56598.0,56597.0,0.19557263]
[1725601360495,0.01731673,56598.0,56597.0,0.01888563]
[1725601360710,0.01731673,56598.0,56597.0,0.01788563]
[1725601360918,0.01731673,56598.0,56597.0,0.19457263]
[1725601361140,0.01731673,56598.0,56597.0,0.19297963]
[1725601361791,0.01731673,56598.0,56597.0,1.11582963]
[1725601362419,0.01731673,56598.0,56597.0,1.11882963]
[1725601362420,0.000816,56598.0,56597.0,1.11882963]
[1725601362682,0.0450244,56598.0,56597.0,1.11882963]
[1725601363505,0.0450244,56598.0,56597.0,1.47220463]
[1725601365696,0.02852372,56598.0,56597.0,1.47220463]
[1725601365901,0.04502508,56598.0,56597.0,1.47220463]
[1725601366112,0.04502511,56598.0,56597.0,1.37670463]
[1725601369145,0.04502859,56598.0,56597.0,1.37670463]
[1725601369364,0.01732087,56598.0,56597.0,1.37670463]
[1725601371769,0.01732087,56598.0,56597.0,1.47220463]
[1725601372445,0.000816,56598.0,56597.0,1.47220463]
[1725601372671,0.01732118,56598.0,56597.0,1.47220463]
[1725601372921,0.0450273,56598.0,56597.0,1.47220463]
[1725601374538,0.0450273,56598.0,56597.0,1.47383663]
[1725601375184,0.2217113,56598.0,56597.0,0.02292463]
[1725601376271,0.04502553,56598.0,56597.0,0.02292463]
[1725601376500,0.04502566,56598.0,56597.0,0.02292463]
[1725601376707,0.04502566,56598.0,56597.0,0.19961163]
[1725601379024,0.04502566,56598.0,56597.0,0.02292463]
[1725601380051,0.57508045,56598.0,56597.0,0.02292463]
[1725601380467,0.22171145,56598.0,56597.0,0.02292463]
[1725601381100,0.57508045,56598.0,56597.0,0.02292463]
[1725601381312,0.55857512,56598.0,56597.0,0.02292463]
[1725601381521,0.22171162,56598.0,56597.0,0.02292463]
[1725601381933,0.04502762,56598.0,56597.0,0.02292463]
[1725601384330,0.22171162,56598.0,56597.0,0.02292463]
[1725601384820,0.20520612,56598.0,56597.0,0.02292463]
[1725601385055,0.91194412,56598.0,56597.0,0.02292463]
[1725601385493,0.92844946,56598.0,56597.0,0.006632]
[1725601388193,1.38844946,56598.0,56597.0,0.006632]
[1725601389719,1.03508046,56598.0,56597.0,0.006632]
[1725601389949,1.03508046,56598.0,56597.0,0.02658282]
[1725601390173,1.03508046,56598.0,56597.0,0.006632]
[1725601390419,0.68171146,56598.0,56597.0,0.02658282]
[1725601390621,0.68171146,56598.0,56597.0,0.006632]
[1725601390829,0.68171146,56598.0,56597.0,0.02658282]
[1725601391041,0.68171146,56598.0,56597.0,0.006632]
[1725601391252,0.68171146,56598.0,56597.0,0.02658282]
[1725601391458,0.22171146,56598.0,56597.0,0.006632]
[1725601391684,0.04502746,56598.0,56597.0,0.02658282]
[1725601391945,0.04502746,56598.0,56597.0,0.006632]
[1725601392161,0.04502746,56598.0,56597.0,0.02658282]
[1725601392377,0.01732134,56598.0,56597.0,0.02658282]
[1725601392583,0.04503032,56598.0,56597.0,0.02658282]
[1725601392791,0.04503032,56598.0,56597.0,0.20326982]
[1725601393014,0.04503032,56598.0,56597.0,0.02658282]
[1725601393230,0.01732134,56598.0,56597.0,0.20326982]
[1725601393651,0.01732134,56598.0,56597.0,0.55664482]
[1725601393861,0.01732134,56598.0,56597.0,0.91001982]
[1725601394287,0.01732134,56598.0,56597.0,0.64964482]
[1725601394500,0.01732134,56598.0,56597.0,0.76874482]
[1725601394709,0.0173234,56598.0,56597.0,1.12211982]
[1725601395147,0.0173234,56598.0,56597.0,1.11911982]
[1725601395360,0.0173234,56598.0,56597.0,1.47049482]
[1725601395576,0.0193234,56598.0,56597.0,1.48549482]
[1725601395797,0.0183234,56598.0,56597.0,1.47849482]
[1725601396240,0.0193234,56598.0,56597.0,1.13911982]
[1725601396461,0.04603074,56598.0,56597.0,1.12511982]
[1725601396671,0.04603074,56598.0,56597.0,1.47849482]
[1725601396907,0.04603074,56598.0,56597.0,1.48449482]
[1725601397545,0.04603074,56598.0,56597.0,1.13111982]
[1725601397990,0.02952334,56598.0,56597.0,1.13111982]
[1725601398248,0.0460287,56598.0,56597.0,1.13111982]
[1725601398459,0.0460287,56598.0,56597.0,1.14511982]
[1725601398675,0.0460287,56598.0,56597.0,1.13111982]
[1725601399149,0.0460287,56598.0,56597.0,1.14511982]
[1725601399355,0.12199412,56604.0,56597.0,0.95443282]
[1725601399569,0.176663,56605.0,56602.0,0.176671]
[1725601399786,0.0919,56604.0,56602.0,0.176671]
[1725601399993,0.0919,56604.0,56603.0,0.01993707]
[1725601400393,0.0919,56604.0,56603.0,0.01893707]
[1725601400600,0.268565,56604.0,56603.0,0.01893707]
[1725601400843,0.621896,56604.0,56603.0,0.01893707]
[1725601401048,0.176676,56601.0,56598.0,0.176684]
[1725601401254,0.176676,56601.0,56599.0,0.01988373]
[1725601402507,0.177676,56601.0,56599.0,0.03388373]
[1725601402918,0.001,56601.0,56599.0,0.21056273]
[1725601403559,0.02870743,56601.0,56599.0,0.21056273]
[1725601404416,0.02870743,56601.0,56599.0,0.22456273]
[1725601406793,0.02870743,56601.0,56600.0,0.176678]
[1725601407185,0.02870743,56601.0,56599.0,0.22456373]
[1725601407405,0.02870743,56601.0,56600.0,0.01988144]
[1725601407603,0.02870743,56601.0,56600.0,0.19655944]
[1725601408018,0.02870743,56601.0,56600.0,0.21055944]
[1725601408457,0.02770743,56601.0,56600.0,0.21055944]
[1725601408666,0.02870743,56601.0,56600.0,0.22455944]
[1725601411418,0.02870743,56601.0,56600.0,0.04788144]
[1725601411419,0.20538243,56601.0,56600.0,0.04788144]
[1725601411631,0.02870743,56601.0,56600.0,0.22455944]
[1725601412081,0.02952343,56601.0,56600.0,0.22455944]
[1725601413103,0.02952343,56601.0,56600.0,0.04788144]
[1725601413515,0.02952343,56601.0,56600.0,0.22455944]
[1725601413730,0.02952343,56601.0,56600.0,0.04788144]
[1725601414441,0.55954843,56601.0,56600.0,0.04788144]
[1725601414698,0.55954843,56601.0,56600.0,0.028]
[1725601414699,1.16863743,56601.0,56600.0,0.028]
[1725601415436,0.84353486,56601.0,56600.0,0.014]
[1725601415681,0.620053,56598.0,56597.0,0.001632]
[1725601415966,0.973422,56598.0,56597.0,0.001632]
[1725601416408,0.620053,56598.0,56597.0,0.02152032]
[1725601418553,0.267684,56598.0,56597.0,0.03552032]
[1725601418784,0.268684,56598.0,56597.0,0.04852032]
[1725601419475,0.002,56598.0,56597.0,0.04852032]
[1725601421116,0.002,56598.0,56597.0,0.93195732]
[1725601421374,0.002,56598.0,56597.0,1.37523232]
[1725601421629,0.002,56598.0,56597.0,1.49203232]
[1725601428315,0.08363791,56606.0,56603.0,0.176666]
[1725601428732,0.08363791,56606.0,56604.0,0.01987228]
[1725601430204,0.08363791,56606.0,56604.0,0.02387228]
[1725601430407,0.08363791,56606.0,56604.0,0.004]
[1725601431044,0.26029791,56606.0,56604.0,0.004]
[1725601431320,0.26029791,56606.0,56604.0,0.009]
[1725601432814,0.08363791,56606.0,56604.0,0.185665]
[1725601432994,0.08363791,56606.0,56604.0,0.275565]
[1725601433438,0.08363791,56606.0,56605.0,0.01986999]
[1725601433801,0.26029691,56606.0,56605.0,0.01986999]
[1725601434008,0.08363791,56606.0,56605.0,0.01986999]
[1725601434210,0.26029691,56606.0,56605.0,0.01986999]
[1725601434411,0.61361591,56606.0,56605.0,0.01986999]
[1725601434619,0.66638859,56606.0,56605.0,0.01986999]
[1725601434941,0.66638859,56606.0,56605.0,0.02486999]
[1725601435318,0.61361591,56606.0,56605.0,0.02486999]
[1725601435927,1.05873491,56606.0,56605.0,0.02486999]
[1725601436476,1.05873491,56606.0,56605.0,0.009]
[1725601437318,0.96775091,56606.0,56605.0,0.009]
[1725601437741,0.96775091,56606.0,56605.0,0.02886999]
[1725601437961,0.96775091,56606.0,56605.0,0.009]
[1725601438172,0.96775091,56606.0,56605.0,0.02886999]
[1725601438382,0.96775091,56606.0,56605.0,0.009]
[1725601438631,0.96775091,56606.0,56605.0,0.02886999]
[1725601438879,0.96775091,56606.0,56605.0,0.009]
[1725601439754,0.96775091,56606.0,56605.0,0.02886999]
[1725601439968,0.96775091,56606.0,56605.0,0.009]
[1725601440180,0.96775091,56606.0,56605.0,0.02886999]
[1725601440388,0.96775091,56606.0,56605.0,0.009]
[1725601440594,0.96775091,56606.0,56605.0,0.02886999]
[1725601440811,0.96775091,56606.0,56605.0,0.009]
[1725601441038,0.96775091,56606.0,56605.0,0.02886999]
[1725601441270,0.96775091,56606.0,56605.0,0.009]
[1725601441485,0.66721244,56606.0,56605.0,0.009]
[1725601441710,0.61443191,56606.0,56605.0,0.009]
[1725601443146,0.66721244,56606.0,56605.0,0.02886999]
[1725601443375,0.61443191,56606.0,56605.0,0.009]
[1725601443587,0.61443191,56606.0,56605.0,0.02886999]
[1725601443799,0.61443191,56606.0,56605.0,0.009]
[1725601443800,0.69362052,56606.0,56605.0,0.009]
[1725601444019,0.69362052,56606.0,56605.0,0.02886999]
[1725601444231,0.69362052,56606.0,56605.0,0.009]
[1725601444424,0.61443191,56606.0,56605.0,0.02886999]
[1725601444642,0.61443191,56606.0,56605.0,0.009]
[1725601444828,0.66722858,56606.0,56605.0,0.02886999]
[1725601445029,0.61443191,56606.0,56605.0,0.009]
[1725601445641,0.6936259,56606.0,56605.0,0.02886999]
[1725601445850,0.61443191,56606.0,56605.0,0.009]
[1725601446051,0.61443191,56606.0,56605.0,0.02886999]
[1725601446052,0.6936259,56606.0,56605.0,0.02886999]
[1725601446259,0.6936259,56606.0,56605.0,0.009]
[1725601446507,0.99544147,56606.0,56605.0,0.009]
[1725601446707,0.69362746,56606.0,56605.0,0.009]
[1725601446911,0.61443191,56606.0,56605.0,0.009]
[1725601447061,0.61443191,56606.0,56605.0,0.11796999]
[1725601447269,1.04694646,56606.0,56605.0,0.02886999]
[1725601447618,0.96775091,56606.0,56605.0,0.02886999]
[1725601448050,0.96775091,56606.0,56605.0,0.009]
[1725601448051,1.04694646,56606.0,56605.0,0.009]
[1725601448252,1.04694646,56606.0,56605.0,0.02886999]
[1725601448705,0.96775091,56606.0,56605.0,0.02886999]
[1725601449168,0.96775091,56606.0,56605.0,0.009]
[1725601449400,1.04694493,56606.0,56605.0,0.029003]
[1725601449619,1.32106991,56606.0,56605.0,0.009]
[1725601449837,1.59534382,56606.0,56605.0,0.029003]
[1725601450058,1.59534382,56606.0,56605.0,0.009]
[1725601450284,1.13643279,56606.0,56605.0,0.009]
[1725601450504,0.99544156,56606.0,56605.0,0.009]
[1725601450723,1.04694152,56606.0,56605.0,0.009]
[1725601452369,1.0746255,56606.0,56605.0,0.009]
[1725601452578,1.04693564,56606.0,56605.0,0.009]
[1725601452786,1.04693746,56606.0,56605.0,0.009]
[1725601452986,1.04693742,56606.0,56605.0,0.009]
[1725601453209,1.07462714,56606.0,56605.0,0.009]
[1725601453774,1.10103021,56606.0,56605.0,0.009]
[1725601453948,1.04693937,56606.0,56605.0,0.009]
[1725601454152,1.04693678,56606.0,56605.0,0.009]
[1725601454392,1.07462652,56606.0,56605.0,0.009]
[1725601454968,1.09114487,56606.0,56605.0,0.009]
[1725601455171,0.96775091,56606.0,56605.0,0.009]
[1725601455391,1.06345491,56606.0,56605.0,0.009]
[1725601455808,0.98426904,56606.0,56605.0,0.009]
[1725601456008,0.96775091,56606.0,56605.0,0.029003]
[1725601456328,0.96775091,56606.0,56605.0,0.009]
[1725601458439,1.02054565,56606.0,56605.0,0.009]
[1725601459078,0.96775091,56606.0,56605.0,0.009]
[1725601461379,0.000816,56606.0,56605.0,0.632487]
[1725601461592,0.000816,56606.0,56605.0,1.097912]
[1725601461852,0.000816,56606.0,56605.0,1.117915]
[1725601462486,0.000816,56606.0,56605.0,0.76459]
[1725601462696,0.000816,56606.0,56605.0,0.411265]
[1725601463185,0.000816,56606.0,56605.0,0.76459]
[1725601463626,0.02852122,56606.0,56605.0,0.76459]
[1725601464718,0.91181822,56606.0,56605.0,0.029003]
[1725601464942,0.99100409,56606.0,56605.0,0.029003]
[1725601465154,0.91181822,56606.0,56605.0,0.009]
[1725601465369,1.04508893,56606.0,56605.0,0.009]
[1725601465579,1.49840793,56606.0,56605.0,0.009]
[1725601465991,1.39282699,56606.0,56605.0,0.009]
[1725601466205,1.506145,56606.0,56605.0,0.009]
[1725601466412,1.66112118,56606.0,56605.0,0.009]
[1725601466833,1.529145,56606.0,56605.0,0.009]
[1725601467762,1.57833623,56606.0,56605.0,0.009]
[1725601470614,1.529145,56606.0,56605.0,0.009]
[1725601471552,1.51262699,56606.0,56605.0,0.009]
[1725601471763,1.52914343,56606.0,56605.0,0.009]
[1725601473484,1.88246243,56606.0,56605.0,0.009]
[1725601473709,2.95494635,56606.0,56605.0,0.009]
[1725601473921,2.69916816,56606.0,56605.0,0.009]
[1725601474352,3.05248716,56606.0,56605.0,0.005]
[1725601474585,3.05448716,56606.0,56605.0,0.005]
[1725601474794,3.05448716,56606.0,56605.0,0.007]
[1725601475004,1.591989,56604.0,56603.0,0.001632]
[1725601475215,2.01416477,56604.0,56603.0,0.001632]
[1725601475429,1.85599521,56604.0,56603.0,0.001632]
[1725601475870,1.85399521,56604.0,56603.0,0.001632]
[1725601476286,1.85899521,56604.0,56603.0,0.002632]
[1725601476717,2.37399521,56604.0,56603.0,0.001632]
[1725601477564,2.37899521,56604.0,56603.0,0.002632]
[1725601477767,2.38899521,56604.0,56603.0,0.003632]
[1725601478180,2.38099521,56604.0,56603.0,0.002632]
[1725601478386,2.37899521,56604.0,56603.0,0.002632]
[1725601478593,2.37047877,56604.0,56603.0,0.003632]
[1725601478799,2.37047877,56604.0,56603.0,0.002632]
[1725601478800,2.36547877,56604.0,56603.0,0.002632]
[1725601479190,2.36547877,56604.0,56603.0,0.003632]
[1725601479191,2.46404369,56604.0,56603.0,0.003632]
[1725601479616,2.47556071,56604.0,56603.0,0.002632]
[1725601479839,2.94969171,56604.0,56603.0,0.002632]
[1725601480025,2.95469171,56604.0,56603.0,0.003632]
[1725601480594,2.97120616,56604.0,56603.0,0.003632]
[1725601482331,2.95469171,56604.0,56603.0,0.003632]
[1725601482542,3.04876148,56604.0,56603.0,0.003632]
[1725601484146,3.05585148,56604.0,56603.0,0.003632]
[1725601484578,2.97829658,56604.0,56603.0,0.003632]
[1725601485447,2.97829633,56604.0,56603.0,0.003632]
[1725601486871,3.05585213,56604.0,56603.0,0.003632]
[1725601487038,2.97829633,56604.0,56603.0,0.003632]
[1725601487838,3.05585167,56604.0,56603.0,0.003632]
[1725601488042,2.97829633,56604.0,56603.0,0.003632]
[1725601488241,3.05585228,56604.0,56603.0,0.003632]
[1725601488543,2.97829633,56604.0,56603.0,0.003632]
[1725601489192,2.97829625,56604.0,56603.0,0.003632]
[1725601489397,2.94592256,56604.0,56603.0,0.003632]
[1725601490705,2.76925756,56604.0,56603.0,0.003632]
[1725601490940,3.02349132,56604.0,56603.0,0.003632]
[1725601492059,3.00697678,56604.0,56603.0,0.003632]
[1725601492489,2.88617516,56604.0,56603.0,0.003632]
[1725601493622,2.78091663,56604.0,56603.0,0.003632]
[1725601493829,2.88617516,56604.0,56603.0,0.003632]
[1725601494039,2.78091663,56604.0,56603.0,0.003632]
[1725601495291,2.76440123,56604.0,56603.0,0.003632]
[1725601495721,2.78092023,56604.0,56603.0,0.003632]
[1725601496407,2.78939407,56604.0,56603.0,0.003632]
[1725601496639,2.76307203,56604.0,56603.0,0.003632]
[1725601497335,2.68412023,56604.0,56603.0,0.003632]
[1725601497567,2.76307739,56604.0,56603.0,0.003632]
[1725601497685,2.68412023,56604.0,56603.0,0.003632]
[1725601498596,2.68412236,56604.0,56603.0,0.003632]
[1725601499081,2.70064346,56604.0,56603.0,0.003632]
[1725601499300,2.7118191,56604.0,56603.0,0.003632]
[1725601500010,2.7126351,56604.0,56603.0,0.003632]
[1725601500245,2.7106351,56604.0,56603.0,0.003632]
[1725601500496,1.5407541,56604.0,56603.0,0.100332]
[1725601500721,1.8940851,56604.0,56603.0,0.100332]
[1725601501396,2.3512662,56604.0,56603.0,0.003632]
[1725601501616,2.44192969,56604.0,56603.0,0.003632]
[1725601502063,2.33663921,56604.0,56603.0,0.003632]
[1725601502323,2.35963921,56604.0,56603.0,0.003632]
[1725601503435,2.35931284,56604.0,56603.0,0.003632]
[1725601503644,2.43686622,56604.0,56603.0,0.003632]
[1725601503868,2.55151819,56604.0,56603.0,0.003632]
[1725601504106,2.57681881,56604.0,56603.0,0.003632]
[1725601504340,2.59134145,56604.0,56603.0,0.003632]
[1725601504570,2.59334145,56604.0,56603.0,0.003632]